[Event "African-ch Women 2019"]
[Site "Hammamet"]
[Date "2019.07.16"]
[Round "7.5"]
[White "Ravelomanana, Sabine"]
[Black "Mwango, Lorita"]
[Result "1/2-1/2"]
[ECO "D02"]
[WhiteElo "1832"]
[BlackElo "1931"]
[Annotator "NA"]
[PlyCount "141"]
[EventDate "2019.07.09"]
[EventType "swiss"]
[EventCountry "TUN"]
[TimeControl "5400+30"]

1. d4 {[%emt 0:00:00]} d5 {[%emt 0:00:00]} 2. Bf4 {[%emt 0:00:00]} Nf6 {[%emt 0:01:01]} 3. e3 {[%emt 0:00:00]} e6 {[%emt 0:01:10]} 4. Bd3 {[%emt 0:00:40]} c5 {[%emt 0:00:48]} 5. c3 {[%emt 0:00:22]} Nc6 {[%emt 0:01:04]} 6. Nf3 {[%emt 0:02:00]} Be7 {[%emt 0:00:29]} 7. Nbd2 {[%emt 0:02:30]} Bd7 {[%emt 0:02:40]} 8. Ne5 {[%emt 0:03:30]} a6 {[%emt 0:13:13]} 9. Ndf3 {[%emt 0:01:32]} Rc8 {[%emt 0:03:14]} 10. Rc1 {[%emt 0:12:09]} h6 {[%emt 0:03:03]} 11. h4 {[%emt 0:10:43]} Qa5 {[%emt 0:04:28]} 12. Bb1 {[%emt 0:03:46]} Nxe5 {[%emt 0:19:38]} 13. Nxe5 {[%emt 0:00:40]} Qb6 {[%emt 0:07:02]} 14. Qd2 {[%emt 0:14:58]} Bc6 {[%emt 0:04:14]} 15. f3 {[%emt 0:01:39]} Nh5 {[%emt 0:02:02]} 16. Ng6 {[%emt 0:17:45]} Rg8 {[%emt 0:01:04]} 17. Nxe7 {[%emt 0:00:16]} Kxe7 {[%emt 0:00:20]} 18. Bh2 {[%emt 0:00:48]} Nf6 {[%emt 0:02:31]} 19. g4 {[%emt 0:01:37]} Nd7 {[%emt 0:06:29]} 20. O-O {[%emt 0:02:14]} Rcf8 {[%emt 0:04:26]} 21. c4 {[%emt 0:05:55]} cxd4 {[%emt 0:02:18]} 22. exd4 {[%emt 0:01:30]} dxc4 {[%emt 0:01:25]} 23. Rf2 {[%emt 0:02:23]} Bd5 {[%emt 0:03:08]} 24. b3 {[%emt 0:03:05]} Rc8 {[%emt 0:02:50]} 25. bxc4 {[%emt 0:01:05]} Rxc4 {[%emt 0:00:52]} 26. Rxc4 {[%emt 0:03:50]} Bxc4 {[%emt 0:00:34]} 27. Be4 {[%emt 0:00:12]} Nf6 {[%emt 0:02:49]} 28. Qb2 {[%emt 0:04:01]} Qxb2 {[%emt 0:04:00]} 29. Rxb2 {[%emt 0:00:02]} b5 {[%emt 0:00:42]} 30. Bb7 {[%emt 0:01:14]} Rd8 {[%emt 0:00:23]} 31. Rd2 {[%emt 0:00:46]} a5 {[%emt 0:00:14]} 32. Kf2 {[%emt 0:01:15]} Nd5 {[%emt 0:00:59]} 33. a3 {[%emt 0:01:39]} f6 {[%emt 0:02:10]} 34. h5 {[%emt 0:00:28]} Kd7 {[%emt 0:01:16]} 35. Rc2 {[%emt 0:01:15]} Rg8 {[%emt 0:01:16]} 36. a4 {[%emt 0:00:50]} Bb3 {[%emt 0:00:35]} 37. Bc6+ {[%emt 0:00:06]} Ke7 {[%emt 0:00:14]} 38. Rc5 {[%emt 0:00:48]} Bxa4 {[%emt 0:01:34]} 39. Bxb5 {[%emt 0:00:18]} Bxb5 {[%emt 0:00:15]} 40. Rxb5 {[%emt 0:00:00]} Ra8 {[%emt 0:00:00]} 41. Rb7+ {[%emt 0:00:00]} Kf8 {[%emt 0:00:00]} 42. Bd6+ {[%emt 0:00:00]} Kg8 {[%emt 0:00:00]} 43. Ke2 {[%emt 0:00:00]} Rd8 {[%emt 0:00:00]} 44. Bc5 {[%emt 0:00:00]} Ra8 {[%emt 0:00:00]} 45. Kd3 {[%emt 0:00:00]} a4 {[%emt 0:00:00]} 46. Ba3 {[%emt 0:00:00]} Rc8 {[%emt 0:00:00]} 47. Bc5 {[%emt 0:00:00]} Ra8 {[%emt 0:00:00]} 48. Ba3 {[%emt 0:00:00]} g6 {[%emt 0:00:00]} 49. hxg6 {[%emt 0:00:00]} Nf4+ {[%emt 0:00:00]} 50. Ke4 {[%emt 0:00:00]} Nxg6 {[%emt 0:00:00]} 51. d5 {[%emt 0:00:00]} exd5+ {[%emt 0:00:00]} 52. Kxd5 {[%emt 0:00:00]} Ra6 {[%emt 0:00:00]} 53. Rc7 {[%emt 0:00:14]} Ne5 {[%emt 0:00:00]} 54. Ke4 {[%emt 0:01:12]} Rc6 {[%emt 0:00:00]} 55. Ra7 {[%emt 0:03:26]} Rc4+ {[%emt 0:00:00]} 56. Kf5 {[%emt 0:02:30]} Nxf3 {[%emt 0:00:00]} 57. Kxf6 {[%emt 0:00:32]} Rxg4 {[%emt 0:00:00]} 58. Ra8+ {[%emt 0:00:17]} Kh7 {[%emt 0:00:07]} 59. Ra7+ {[%emt 0:01:12]} Kh8 {[%emt 0:00:12]} 60. Ra8+ {[%emt 0:01:12]} Rg8 {[%emt 0:02:32]} 61. Rxa4 {[%emt 0:00:15]} Rc8 {[%emt 0:07:53]} 62. Ra7 {[%emt 0:01:03]} Rc6+ {[%emt 0:00:34]} 63. Kf5 {[%emt 0:00:26]} Nd4+ {[%emt 0:00:36]} 64. Kg4 {[%emt 0:00:37]} Nb5 {[%emt 0:01:13]} 65. Bb2+ {[%emt 0:00:20]} Kg8 {[%emt 0:00:03]} 66. Rg7+ {[%emt 0:00:18]} Kf8 {[%emt 0:00:51]} 67. Rb7 {[%emt 0:00:23]} Nd6 {[%emt 0:00:51]} 68. Ba3 {[%emt 0:00:24]} Kg8 {[%emt 0:00:25]} 69. Bxd6 {[%emt 0:00:14]} Rxd6 {[%emt 0:00:45]} 70. Kh5 {[%emt 0:00:02]} Rf6 {[%emt 0:00:31]} 71. Ra7 {[%emt 0:00:06]} 1/2-1/2

[Event "African-ch Women 2019"]
[Site "Hammamet"]
[Date "2019.07.16"]
[Round "8.1"]
[White "Wafa, Shrook"]
[Black "Nassr, Lina"]
[Result "1-0"]
[ECO "B40"]
[WhiteElo "2144"]
[BlackElo "1982"]
[Annotator "ChessBase"]
[PlyCount "133"]
[EventDate "2019.07.09"]
[EventType "swiss"]
[EventCountry "TUN"]
[SourceTitle "playchess.com"]
[Source "ChessBase"]
[SourceQuality "1"]
[TimeControl "5400+30"]

1. e4 {[%emt 0:00:00]} c5 {[%emt 0:00:00]} 2. Nf3 {[%emt 0:00:00]} e6 {[%emt 0:00:00]} 3. d4 {[%emt 0:00:11]} cxd4 {[%emt 0:00:00]} 4. Nxd4 {[%emt 0:00:02]} Nf6 {[%emt 0:00:20]} 5. Bd3 {[%emt 0:00:49]} Nc6 {[%emt 0:00:27]} 6. Nb3 {[%emt 0:00:50]} Be7 {[%emt 0:03:52]} 7. O-O {[%emt 0:01:00]} O-O {[%emt 0:00:47]} 8. Re1 {[%emt 0:02:24]} Qc7 {[%emt 0:04:35]} 9. Nc3 {[%emt 0:01:03]} a6 {[%emt 0:01:53]} 10. Qe2 {[%emt 0:02:20]} d6 {[%emt 0:04:32]} 11. a4 {[%emt 0:01:07]} b6 {[%emt 0:01:39]} 12. Be3 {[%emt 0:01:33]} Nb4 {[%emt 0:03:45]} 13. a5 {[%emt 0:03:15]} bxa5 {[%emt 0:07:03]} 14. Nxa5 {[%emt 0:02:11]} Rb8 {[%emt 0:02:20]} 15. Reb1 {[%emt 0:06:12]} Rd8 {[%emt 0:04:20]} 16. f3 {[%emt 0:03:01]} d5 {[%emt 0:04:38]} 17. Bf2 {[%emt 0:01:13]} Nxd3 {[%emt 0:07:50]} 18. cxd3 {[%emt 0:00:32]} Bb4 {[%emt 0:01:02]} 19. Rc1 {[%emt 0:11:42]} Bxa5 {[%emt 0:18:59]} 20. Nd1 {[%emt 0:06:49]} Qd7 {[%emt 0:09:59]} 21. Rxa5 {[%emt 0:00:27]} dxe4 {[%emt 0:01:29]} 22. dxe4 {[%emt 0:01:08]} Qd2 {[%emt 0:04:23]} 23. Qxd2 {[%emt 0:02:24]} Rxd2 {[%emt 0:00:09]} 24. Bg3 {[%emt 0:01:34]} Ra8 {[%emt 0:00:45]} 25. Rac5 {[%emt 0:01:07]} Rd8 {[%emt 0:05:57]} 26. Bh4 {[%emt 0:02:29]} Re8 {[%emt 0:01:52]} 27. Bxf6 {[%emt 0:00:54]} gxf6 {[%emt 0:00:06]} 28. Ne3 {[%emt 0:00:31]} Bd7 {[%emt 0:07:26]} 29. Ng4 {[%emt 0:01:44]} Kg7 {[%emt 0:00:53]} 30. e5 {[%emt 0:01:29]} fxe5 {[%emt 0:01:10]} 31. Nxe5 {[%emt 0:00:27]} Bb5 {[%emt 0:00:50]} 32. Rc7 {[%emt 0:00:24]} Rf8 {[%emt 0:00:29]} 33. Kf2 {[%emt 0:00:46]} Rad8 {[%emt 0:00:39]} 34. Ke3 {[%emt 0:00:49]} Rd5 {[%emt 0:01:34]} 35. f4 {[%emt 0:00:35]} Kg8 {[%emt 0:00:55]} 36. Re7 {[%emt 0:01:49]} Rdd8 {[%emt 0:00:47]} 37. Rcc7 {[%emt 0:01:19]} Be8 {[%emt 0:00:26]} 38. Rb7 {[%emt 0:03:31]} Rc8 {[%emt 0:00:32]} 39. g4 {[%emt 0:00:30]} Rc2 {[%emt 0:00:34]} 40. h4 {[%emt 0:00:00]} Rh2 {[%emt 0:00:00]} 41. h5 {[%emt 0:00:00]} h6 {[%emt 0:00:00]} 42. b4 {[%emt 0:00:00]} Rh3+ {[%emt 0:00:00]} 43. Kf2 {[%emt 0:00:00]} Rh2+ {[%emt 0:00:00]} 44. Kg3 {[%emt 0:00:00]} Re2 {[%emt 0:00:00]} 45. Rb8 {[%emt 0:00:00]} Bb5 {[%emt 0:00:00]} 46. Rxf8+ {[%emt 0:00:00]} Kxf8 {[%emt 0:00:00]} 47. Rxf7+ {[%emt 0:00:00]} Kg8 {[%emt 0:00:00]} 48. Rf6 {[%emt 0:00:00]} Re3+ {[%emt 0:00:00]} 49. Kf2 {[%emt 0:00:00]} Re4 {[%emt 0:00:00]} 50. Kf3 {[%emt 0:00:00]} Rxb4 {[%emt 0:00:19]} 51. Rxe6 {[%emt 0:00:00]} Kg7 {[%emt 0:02:14]} 52. Re7+ {[%emt 0:00:00]} Kg8 {[%emt 0:01:02]} 53. Ra7 {[%emt 0:00:00]} Rb1 {[%emt 0:01:12]} 54. Nf7 {[%emt 0:00:00]} Rf1+ {[%emt 0:00:54]} 55. Ke4 {[%emt 0:00:00]} Be2 {[%emt 0:01:42]} 56. Nxh6+ {[%emt 0:00:00]} Kf8 {[%emt 0:00:25]} 57. Ke5 {[%emt 0:00:00]} Bd1 {[%emt 0:01:12]} 58. Rxa6 {[%emt 0:00:00]} Rf2 {[%emt 0:00:28]} 59. f5 {[%emt 0:00:00]} Be2 {[%emt 0:00:31]} 60. Ra7 {[%emt 0:00:00]} Bd1 {[%emt 0:00:29]} 61. Kf6 {[%emt 0:00:00]} Ke8 {[%emt 0:00:29]} 62. Ra8+ {[%emt 0:00:00]} Kd7 {[%emt 0:00:06]} 63. g5 {[%emt 0:00:00]} Bxh5 {[%emt 0:00:10]} 64. g6 {[%emt 0:00:00]} Be2 {[%emt 0:00:53]} 65. g7 {[%emt 0:00:00]} Bc4 {[%emt 0:00:05]} 66. g8=Q {[%emt 0:00:00]} Bxg8 {[%emt 0:00:06]} 67. Rxg8 {[%emt 0:00:00]} 1-0

[Event "African-ch Women 2019"]
[Site "Hammamet"]
[Date "2019.07.16"]
[Round "8.2"]
[White "Latreche, Sabrina"]
[Black "Elansary, Eman"]
[Result "1/2-1/2"]
[ECO "B01"]
[WhiteElo "2062"]
[BlackElo "1946"]
[Annotator "NA"]
[PlyCount "86"]
[EventDate "2019.07.09"]
[EventType "swiss"]
[EventCountry "TUN"]
[SourceTitle "playchess.com"]
[Source "ChessBase"]
[SourceQuality "1"]
[TimeControl "5400+30"]

1. e4 {[%emt 0:00:00]} d5 {[%emt 0:00:00]} 2. exd5 {[%emt 0:00:00]} Nf6 {[%emt 0:00:00]} 3. Nf3 {[%emt 0:00:00]} Nxd5 {[%emt 0:00:54]} 4. d4 {[%emt 0:00:09]} Bf5 {[%emt 0:02:38]} 5. c3 {[%emt 0:01:25]} c6 {[%emt 0:01:06]} 6. Bd3 {[%emt 0:01:53]} Bxd3 {[%emt 0:02:15]} 7. Qxd3 {[%emt 0:00:04]} e6 {[%emt 0:02:17]} 8. O-O {[%emt 0:02:21]} Be7 {[%emt 0:00:45]} 9. c4 {[%emt 0:04:17]} Nf6 {[%emt 0:04:18]} 10. Nc3 {[%emt 0:04:28]} O-O {[%emt 0:02:00]} 11. Bf4 {[%emt 0:03:59]} Nh5 {[%emt 0:04:37]} 12. Bd2 {[%emt 0:04:48]} c5 {[%emt 0:09:21]} 13. d5 {[%emt 0:02:51]} Nf6 {[%emt 0:04:15]} 14. Bf4 {[%emt 0:11:02]} exd5 {[%emt 0:01:01]} 15. Nxd5 {[%emt 0:02:27]} Nxd5 {[%emt 0:00:25]} 16. cxd5 {[%emt 0:00:16]} Nd7 {[%emt 0:09:06]} 17. Rac1 {[%emt 0:14:37]} Re8 {[%emt 0:05:54]} 18. Rfe1 {[%emt 0:08:47]} Qb6 {[%emt 0:04:42]} 19. d6 {[%emt 0:01:50]} Bf6 {[%emt 0:01:09]} 20. Qf5 {[%emt 0:07:04]} Qc6 {[%emt 0:04:52]} 21. b3 {[%emt 0:03:51]} h6 {[%emt 0:12:25]} 22. Rcd1 {[%emt 0:03:10]} Bc3 {[%emt 0:05:16]} 23. Re7 {[%emt 0:03:11]} Nf6 {[%emt 0:04:00]} 24. Rc7 {[%emt 0:00:37]} Qe4 {[%emt 0:04:33]} 25. Qxe4 {[%emt 0:00:33]} Rxe4 {[%emt 0:00:59]} 26. Be3 {[%emt 0:00:25]} Rd8 {[%emt 0:04:21]} 27. Rxb7 {[%emt 0:01:45]} Bd4 {[%emt 0:00:38]} 28. Bxd4 {[%emt 0:08:20]} Rxd6 {[%emt 0:00:20]} 29. Rxa7 {[%emt 0:00:25]} cxd4 {[%emt 0:00:28]} 30. Ra4 {[%emt 0:05:20]} d3 {[%emt 0:01:11]} 31. Rxe4 {[%emt 0:00:09]} Nxe4 {[%emt 0:00:02]} 32. Ne5 {[%emt 0:00:05]} d2 {[%emt 0:05:28]} 33. Nc4 {[%emt 0:00:04]} Ra6 {[%emt 0:00:47]} 34. a4 {[%emt 0:00:26]} Nc5 {[%emt 0:01:06]} 35. Rxd2 {[%emt 0:04:11]} Nxb3 {[%emt 0:00:02]} 36. Rd8+ {[%emt 0:00:05]} Kh7 {[%emt 0:00:18]} 37. Nb2 {[%emt 0:02:26]} Nc5 {[%emt 0:01:04]} 38. g3 {[%emt 0:00:23]} Nxa4 {[%emt 0:00:30]} 39. Nd3 {[%emt 0:00:10]} Nc3 {[%emt 0:01:16]} 40. Rd7 {[%emt 0:00:00]} f5 {[%emt 0:00:00]} 41. Nf4 {[%emt 0:00:00]} Ne4 {[%emt 0:00:00]} 42. Kg2 {[%emt 0:00:00]} Rd6 {[%emt 0:00:00]} 43. Rxd6 {[%emt 0:00:00]} Nxd6 {[%emt 0:00:00]} 1/2-1/2

[Event "African-ch Women 2019"]
[Site "Hammamet"]
[Date "2019.07.16"]
[Round "8.3"]
[White "Ravelomanana, Sabine"]
[Black "Mezioud, Amina"]
[Result "0-1"]
[ECO "A46"]
[WhiteElo "1832"]
[BlackElo "2128"]
[Annotator "NA"]
[PlyCount "70"]
[EventDate "2019.07.09"]
[EventType "swiss"]
[EventCountry "TUN"]
[SourceTitle "playchess.com"]
[Source "ChessBase"]
[SourceQuality "1"]
[TimeControl "5400+30"]

1. d4 {[%emt 0:00:00]} Nf6 {[%emt 0:00:46]} 2. Bf4 {[%emt 0:00:01]} d6 {[%emt 0:00:07]} 3. e3 {[%emt 0:00:05]} Nbd7 {[%emt 0:01:09]} 4. Nf3 {[%emt 0:00:40]} Nh5 {[%emt 0:00:19]} 5. Bg5 {[%emt 0:00:39]} h6 {[%emt 0:00:10]} 6. Bh4 {[%emt 0:00:06]} g5 {[%emt 0:00:11]} 7. Bg3 {[%emt 0:00:07]} Nxg3 {[%emt 0:00:07]} 8. hxg3 {[%emt 0:00:03]} Bg7 {[%emt 0:00:13]} 9. Bd3 {[%emt 0:00:32]} e5 {[%emt 0:04:06]} 10. c3 {[%emt 0:03:19]} O-O {[%emt 0:02:27]} 11. Qc2 {[%emt 0:01:59]} Re8 {[%emt 0:04:48]} 12. Nbd2 {[%emt 0:03:19]} Nf6 {[%emt 0:09:48]} 13. dxe5 {[%emt 0:07:22]} dxe5 {[%emt 0:00:04]} 14. O-O-O {[%emt 0:00:16]} Qe7 {[%emt 0:03:08]} 15. Bc4 {[%emt 0:01:50]} e4 {[%emt 0:02:17]} 16. Nd4 {[%emt 0:05:53]} c5 {[%emt 0:04:46]} 17. N4b3 {[%emt 0:02:49]} Bd7 {[%emt 0:02:32]} 18. Nf1 {[%emt 0:03:53]} b5 {[%emt 0:03:15]} 19. Be2 {[%emt 0:02:15]} a5 {[%emt 0:01:20]} 20. f4 {[%emt 0:00:21]} a4 {[%emt 0:01:13]} 21. Nbd2 {[%emt 0:03:39]} Qe6 {[%emt 0:14:34]} 22. c4 {[%emt 0:09:10]} b4 {[%emt 0:00:09]} 23. b3 {[%emt 0:10:38]} axb3 {[%emt 0:11:35]} 24. axb3 {[%emt 0:00:06]} Ra1+ {[%emt 0:00:32]} 25. Nb1 {[%emt 0:00:07]} Qa6 {[%emt 0:00:51]} 26. Rd2 {[%emt 0:05:12]} Bc8 {[%emt 0:08:52]} 27. Kd1 {[%emt 0:04:06]} Ng4 {[%emt 0:01:16]} 28. Bxg4 {[%emt 0:06:14]} Bxg4+ {[%emt 0:00:06]} 29. Ke1 {[%emt 0:00:05]} Bc3 {[%emt 0:00:18]} 30. Kf2 {[%emt 0:00:05]} Bxd2 {[%emt 0:00:29]} 31. Nfxd2 {[%emt 0:00:04]} Ra2 {[%emt 0:00:39]} 32. Qc1 {[%emt 0:00:20]} Qd6 {[%emt 0:00:53]} 33. Kg1 {[%emt 0:04:23]} Qd3 {[%emt 0:02:23]} 34. Nf1 {[%emt 0:00:59]} Qe2 {[%emt 0:01:37]} 35. Rh2 {[%emt 0:00:21]} Rc2 {[%emt 0:00:42]} 0-1

[Event "African-ch Women 2019"]
[Site "Hammamet"]
[Date "2019.07.16"]
[Round "8.4"]
[White "February, Jesse Nikki"]
[Black "Moaataz, Ayah"]
[Result "0-1"]
[ECO "B18"]
[WhiteElo "1888"]
[BlackElo "2031"]
[Annotator "NA"]
[PlyCount "72"]
[EventDate "2019.07.09"]
[EventType "swiss"]
[EventCountry "TUN"]
[SourceTitle "playchess.com"]
[Source "ChessBase"]
[SourceQuality "1"]
[TimeControl "5400+30"]

1. e4 {[%emt 0:00:00]} c6 {[%emt 0:00:00]} 2. d4 {[%emt 0:00:17]} d5 {[%emt 0:00:00]} 3. Nc3 {[%emt 0:00:38]} dxe4 {[%emt 0:00:00]} 4. Nxe4 {[%emt 0:00:10]} Bf5 {[%emt 0:00:00]} 5. Ng3 {[%emt 0:00:39]} Bg6 {[%emt 0:00:05]} 6. Nh3 {[%emt 0:01:02]} e6 {[%emt 0:00:17]} 7. Nf4 {[%emt 0:00:56]} Bd6 {[%emt 0:00:31]} 8. h4 {[%emt 0:01:16]} Bxf4 {[%emt 0:02:40]} 9. Bxf4 {[%emt 0:00:21]} h6 {[%emt 0:00:09]} 10. Qd2 {[%emt 0:02:02]} Nf6 {[%emt 0:00:39]} 11. c4 {[%emt 0:05:59]} O-O {[%emt 0:14:08]} 12. Be2 {[%emt 0:02:53]} Re8 {[%emt 0:01:29]} 13. h5 {[%emt 0:06:04]} Bh7 {[%emt 0:00:11]} 14. O-O {[%emt 0:00:45]} Na6 {[%emt 0:08:27]} 15. Rad1 {[%emt 0:03:34]} Qe7 {[%emt 0:05:03]} 16. Rfe1 {[%emt 0:08:35]} Rad8 {[%emt 0:04:27]} 17. Qc3 {[%emt 0:09:59]} Nb4 {[%emt 0:08:52]} 18. Bf3 {[%emt 0:20:05]} Nxa2 {[%emt 0:08:02]} 19. Qb3 {[%emt 0:13:27]} Nb4 {[%emt 0:00:32]} 20. Rd2 {[%emt 0:02:48]} b6 {[%emt 0:08:32]} 21. Nf1 {[%emt 0:05:16]} a5 {[%emt 0:09:01]} 22. g4 {[%emt 0:01:04]} Nd7 {[%emt 0:11:02]} 23. Ng3 {[%emt 0:01:17]} e5 {[%emt 0:08:31]} 24. Be4 {[%emt 0:04:10]} Qh4 {[%emt 0:02:14]} 25. Bxh7+ {[%emt 0:01:06]} Kxh7 {[%emt 0:00:05]} 26. dxe5 {[%emt 0:02:34]} Qxg4 {[%emt 0:01:50]} 27. Qe3 {[%emt 0:01:15]} Nc5 {[%emt 0:01:39]} 28. f3 {[%emt 0:00:57]} Qe6 {[%emt 0:00:20]} 29. Rd6 {[%emt 0:03:16]} Qxc4 {[%emt 0:00:35]} 30. Nf5 {[%emt 0:01:24]} Nd5 {[%emt 0:00:45]} 31. Rxd5 {[%emt 0:01:08]} Qxd5 {[%emt 0:00:27]} 32. Bxh6 {[%emt 0:00:19]} g6 {[%emt 0:01:11]} 33. Bg7 {[%emt 0:00:29]} Qd2 {[%emt 0:00:13]} 34. hxg6+ {[%emt 0:00:44]} fxg6 {[%emt 0:00:30]} 35. Bf6 {[%emt 0:00:28]} gxf5 {[%emt 0:00:19]} 36. Bxd8 {[%emt 0:00:05]} Rg8+ {[%emt 0:00:16]} 0-1

[Event "African-ch Women 2019"]
[Site "Hammamet"]
[Date "2019.07.16"]
[Round "8.5"]
[White "Mwango, Lorita"]
[Black "Marzouk, Amira"]
[Result "1/2-1/2"]
[ECO "D02"]
[WhiteElo "1931"]
[BlackElo "1667"]
[Annotator "NA RC"]
[PlyCount "167"]
[EventDate "2019.07.09"]
[EventType "swiss"]
[EventCountry "TUN"]
[SourceTitle "playchess.com"]
[Source "ChessBase"]
[SourceQuality "1"]
[TimeControl "5400+30"]

1. d4 {[%emt 0:00:00]} d5 {[%emt 0:00:00]} 2. Nf3 {[%emt 0:00:00]} Nf6 {[%emt 0:00:04]} 3. Bf4 {[%emt 0:00:17]} e6 {[%emt 0:00:28]} 4. e3 {[%emt 0:00:06]} Be7 {[%emt 0:02:09]} 5. Be2 {[%emt 0:00:15]} O-O {[%emt 0:00:24]} 6. O-O {[%emt 0:00:22] D02: 1 d4 d5 2 Nf3 sidelines, including 2...Nf6 3 g3 and 2...Nf6 3 Bf4} b6 {[%emt 0:01:22]} 7. h3 {[%emt 0:00:33]} Bb7 {[%emt 0:00:41]} 8. Nbd2 {[%emt 0:01:08]} (8. a4 a6 9. Nbd2 Nbd7 10. c3 c5 11. Qb1 Ne4 12. Nxe4 dxe4 13. Nd2 Nf6 14. Rd1 cxd4 15. cxd4 {1-0 (54) Xiong,J (2641)-Liang,A (2430) Saint Louis 2016}) 8... Nbd7 {[%emt 0:07:14]} 9. c3 {[%emt 0:03:02]} Ne4 {[%emt 0:06:07]} 10. Rc1 {[%emt 0:03:40]} c5 {[%emt 0:03:50]} 11. Qc2 $146 {[%emt 0:13:30]} ({Predecessor:} 11. Nxe4 dxe4 12. Nd2 Nf6 13. Qa4 a6 14. Qc2 Qc8 15. Bg5 Qc6 16. dxc5 Bxc5 17. c4 Nd7 18. Bf4 {0-1 (32) Nemeth,A (2045)-Neber,A (2169) Hungary 2009}) 11... Rc8 {[%emt 0:04:33]} 12. Qb1 {[%emt 0:00:45]} f5 {[%emt 0:09:04]} 13. Nxe4 {[%emt 0:09:33]} fxe4 {[%emt 0:02:51]} 14. Ne5 {[%emt 0:00:21]} Nxe5 {[%emt 0:01:54]} 15. Bxe5 {[%emt 0:00:18]} Bd6 {[%emt 0:03:09]} 16. Bg4 {[%emt 0:04:59]} Qe7 {[%emt 0:04:02]} 17. Bxd6 {[%emt 0:03:02]} Qxd6 {[%emt 0:00:06]} 18. Qc2 {[%emt 0:00:19]} Ba6 {[%emt 0:01:24]} 19. Be2 {[%emt 0:00:14]} Bxe2 {[%emt 0:04:50]} 20. Qxe2 {[%emt 0:00:10]} c4 {[%emt 0:00:35]} 21. f3 {[%emt 0:03:43]} exf3 {[%emt 0:05:11]} 22. Rxf3 {[%emt 0:00:18]} Rxf3 {[%emt 0:00:17]} 23. Qxf3 {[%emt 0:00:16]} Rf8 {[%emt 0:00:17]} 24. Qe2 {[%emt 0:00:07]} b5 {[%emt 0:05:53]} 25. Re1 {[%emt 0:01:26]} e5 {[%emt 0:10:05]} 26. dxe5 {[%emt 0:09:09]} Qxe5 {[%emt 0:00:08]} 27. Qd2 {[%emt 0:00:08]} Qe4 {[%emt 0:02:45]} 28. Rd1 {[%emt 0:02:19]} Rf5 {[%emt 0:01:20]} 29. a3 {[%emt 0:00:54]} Re5 {[%emt 0:00:54]} 30. Re1 {[%emt 0:06:34]} a6 {[%emt 0:03:43]} 31. Qd4 {[%emt 0:01:28]} Qxd4 {[%emt 0:01:30]} 32. cxd4 {[%emt 0:00:09]} Re6 {[%emt 0:01:18]} 33. Kf2 {[%emt 0:00:18]} Kf7 {[%emt 0:00:21]} 34. Kf3 {[%emt 0:00:08]} a5 {[%emt 0:02:27]} 35. Rc1 {[%emt 0:07:15]} Kf6 {[%emt 0:01:25]} 36. Ke2 {[%emt 0:01:23]} Kg5 {[%emt 0:01:52]} 37. g3 {[%emt 0:03:48]} Rh6 {[%emt 0:02:09]} 38. Rh1 {[%emt 0:00:30]} Kf5 {[%emt 0:02:14]} 39. Rf1+ {[%emt 0:00:27]} Ke6 {[%emt 0:00:17]} 40. h4 {[%emt 0:00:00]} Rf6 {[%emt 0:00:00]} 41. Re1 {[%emt 0:00:00]} Kf5 {[%emt 0:00:00]} 42. Kf3 {[%emt 0:00:00]} Kg6+ {[%emt 0:00:00]} 43. Kg2 {[%emt 0:00:00]} Kf5 {[%emt 0:00:00]} 44. Kf3 {[%emt 0:00:00]} Ke6+ {[%emt 0:00:00]} 45. Ke2 {[%emt 0:00:00]} Kd6 {[%emt 0:00:00]} 46. Rc1 {[%emt 0:00:00]} Rf7 {[%emt 0:00:00]} 47. Ra1 {[%emt 0:00:00]} Ke6 {[%emt 0:00:00]} 48. Re1 {[%emt 0:00:00]} Rb7 {[%emt 0:00:00]} 49. Kf3 {[%emt 0:00:00]} ({White should try} 49. Kd2 $15) 49... b4 {[%emt 0:00:00]} 50. axb4 {[%emt 0:00:00]} axb4 {[%emt 0:05:41]} 51. Ra1 {[%emt 0:01:07]} Kd6 {[%emt 0:02:00]} 52. Ra6+ {[%emt 0:02:56]} Kc7 {[%emt 0:00:29]} 53. Kf4 {[%emt 0:00:56]} Rb6 {[%emt 0:00:57]} 54. Ra7+ {[%emt 0:04:34] [#]} Kc6 {[%emt 0:00:44]} ({Black should play} 54... Kb8 $1 $17 {[%cal Rb8a7]} 55. Ra1 (55. Rxg7 c3 $19) 55... Kc7) 55. Ke5 $2 $11 {[%emt 0:00:36]} ({Avoid the trap} 55. Rxg7 $2 c3 $19) ({Only move:} 55. e4 $1 $11) 55... Rb7 {[%emt 0:01:41]} 56. Ra6+ {[%emt 0:03:44]} Rb6 {[%emt 0:02:43]} 57. Ra1 $2 {[%emt 0:06:14]} Rb5 $2 {[%emt 0:01:33]} (57... Rb8 $19 58. h5 Re8+ 59. Kf4 Rf8+ 60. Ke5 Rf2) 58. e4 {[%emt 0:01:21]} dxe4+ {[%emt 0:00:50]} 59. Kxe4 {[%emt 0:00:17]} Rb7 {[%emt 0:02:36]} 60. d5+ {[%emt 0:05:14]} Kb5 {[%emt 0:00:13] [#]} ({Better is} 60... Kc5 $11 61. Ra5+ Kb6) 61. Kd4 $1 {[%emt 0:01:58]} Rf7 {[%emt 0:00:29]} (61... Rb6 $1 $14) 62. Rc1 {[%emt 0:01:04]} ({Only move:} 62. Ra8 $16) 62... Rf2 {[%emt 0:01:32]} 63. Rxc4 {[%emt 0:03:32]} Rd2+ {[%emt 0:00:02]} 64. Ke3 {[%emt 0:00:30]} Rxd5 {[%emt 0:00:09]} 65. Rc7 {[%emt 0:01:46]} Rc5 {[%emt 0:01:18]} (65... Re5+ $11 66. Kd4 Re2) 66. Rxc5+ {[%emt 0:00:56]} ({Better is} 66. Rxg7 $16 Rc2 67. Rxh7) 66... Kxc5 {[%emt 0:00:02]} 67. b3 {[%emt 0:00:15]} Kd5 $1 {[%emt 0:00:14]} 68. Kd3 {[%emt 0:00:53]} h5 {[%emt 0:00:57]} 69. Ke3 {[%emt 0:00:28]} Ke5 {[%emt 0:00:22]} 70. Kd3 {[%emt 0:01:04]} Kd5 $5 {[%emt 0:00:05]} 71. Ke3 {[%emt 0:00:41]} Ke5 {[%emt 0:00:04]} 72. Kd3 {[%emt 0:01:12]} Kf5 $11 {[%emt 0:01:47]} 73. Kc4 {[%emt 0:00:15]} (73. Ke3 $1 $11) 73... Kg4 {[%emt 0:00:04]} 74. Kxb4 {[%emt 0:00:03]} Kxg3 {[%emt 0:00:09]} 75. Kc5 {[%emt 0:00:01]} Kxh4 {[%emt 0:00:05]} 76. b4 {[%emt 0:01:11]} Kg4 {[%emt 0:00:04]} 77. b5 {[%emt 0:00:02]} h4 {[%emt 0:00:02]} 78. b6 {[%emt 0:00:11]} h3 {[%emt 0:00:02]} 79. b7 {[%emt 0:00:07]} h2 {[%emt 0:00:04]} 80. b8=Q {[%emt 0:00:11]} h1=Q {[%emt 0:00:08]} 81. Qc8+ {[%emt 0:00:36]} Kg3 {[%emt 0:00:55]} 82. Qc7+ {[%emt 0:00:23]} Kf2 {[%emt 0:00:24]} 83. Qxg7 {[%emt 0:00:31]} Qc1+ {[%emt 0:00:14]} 84. Kd5 {[%emt 0:01:58]} 1/2-1/2